[Event "Early-Titled-Tuesday-Blitz-May-07-2024"]
[Site "Chess.com"]
[Date "2024.05.07"]
[Round "8"]
[White "Ati1517"]
[Black "klifus"]
[Result "1-0"]
[WhiteElo "2266"]
[BlackElo "2186"]
[TimeControl "180+1"]
[EndTime "9:33:51 PDT"]
[Termination "Ati1517 won by checkmate"]

1. e4 {[%clk 0:03:00.9]} 1... c5 {[%clk 0:02:55.8]} 2. Nf3 {[%clk 0:02:57.4]}
2... d6 {[%clk 0:02:54.8]} 3. d4 {[%clk 0:02:57.7]} 3... cxd4 {[%clk 0:02:54.8]}
4. Nxd4 {[%clk 0:02:58.5]} 4... Nf6 {[%clk 0:02:54.9]} 5. Nc3 {[%clk 0:02:58.9]}
5... a6 {[%clk 0:02:54.9]} 6. Bc4 {[%clk 0:02:58]} 6... e6 {[%clk 0:02:53.3]} 7.
Bb3 {[%clk 0:02:57.7]} 7... Be7 {[%clk 0:02:52.9]} 8. O-O {[%clk 0:02:58]} 8...
O-O {[%clk 0:02:52.5]} 9. Be3 {[%clk 0:02:50.9]} 9... Nc6 {[%clk 0:02:52.1]} 10.
h3 {[%clk 0:02:49]} 10... Na5 {[%clk 0:02:51.7]} 11. f4 {[%clk 0:02:47.8]} 11...
Qc7 {[%clk 0:02:45.5]} 12. g4 {[%clk 0:02:39.8]} 12... b5 {[%clk 0:02:40.1]} 13.
g5 {[%clk 0:02:39.2]} 13... Nh5 {[%clk 0:02:26.5]} 14. Qxh5 {[%clk 0:02:36.8]}
14... g6 {[%clk 0:02:19.6]} 15. Qf3 {[%clk 0:02:32.8]} 15... b4 {[%clk
0:02:17.4]} 16. Nce2 {[%clk 0:02:31]} 16... e5 {[%clk 0:02:07.5]} 17. fxe5
{[%clk 0:02:29.5]} 17... dxe5 {[%clk 0:02:06.3]} 18. Bxf7+ {[%clk 0:02:13]}
18... Kg7 {[%clk 0:02:00.6]} 19. h4 {[%clk 0:02:07.7]} 19... Nc4 {[%clk
0:01:56]} 20. h5 {[%clk 0:01:53.9]} 20... Nxe3 {[%clk 0:01:54.7]} 21. h6+ {[%clk
0:01:52.7]} 21... Kh8 {[%clk 0:01:50.4]} 22. Qxe3 {[%clk 0:01:53.2]} 22... Qc5
{[%clk 0:01:15.2]} 23. Bd5 {[%clk 0:01:36.8]} 23... exd4 {[%clk 0:01:10.4]} 24.
Rxf8+ {[%clk 0:01:31.3]} 24... Bxf8 {[%clk 0:01:08.4]} 25. Nxd4 {[%clk
0:01:28.3]} 25... Ra7 {[%clk 0:01:01.8]} 26. Rf1 {[%clk 0:01:26.4]} 26... Be7
{[%clk 0:00:37.9]} 27. Qf2 {[%clk 0:01:10]} 27... Bh3 {[%clk 0:00:33.1]} 28. Qf7
{[%clk 0:00:48.9]} 28... Qxd4+ {[%clk 0:00:30.4]} 29. Kh1 {[%clk 0:00:48.6]}
29... Qxd5 {[%clk 0:00:11]} 30. exd5 {[%clk 0:00:40.2]} 30... Bxf1 {[%clk
0:00:07.3]} 31. Qe8+ {[%clk 0:00:39.3]} 31... Bf8 {[%clk 0:00:06.4]} 32. Qxf8#
{[%clk 0:00:40.2]} 1-0

[Event "Early-Titled-Tuesday-Blitz-May-07-2024"]
[Site "Chess.com"]
[Date "2024.05.07"]
[Round "8"]
[White "h4parah5"]
[Black "stollenmonster"]
[Result "1-0"]
[WhiteElo "3028"]
[BlackElo "2923"]
[TimeControl "180+1"]
[EndTime "9:33:52 PDT"]
[Termination "h4parah5 won by resignation"]

1. Nf3 {[%clk 0:03:00.9]} 1... Nf6 {[%clk 0:02:59.7]} 2. c4 {[%clk 0:03:00.5]}
2... e6 {[%clk 0:03:00.6]} 3. g3 {[%clk 0:03:00.3]} 3... d5 {[%clk 0:03:01.5]}
4. Bg2 {[%clk 0:03:00.5]} 4... Be7 {[%clk 0:03:02.4]} 5. O-O {[%clk 0:02:59.7]}
5... O-O {[%clk 0:03:03.1]} 6. b3 {[%clk 0:02:59.7]} 6... b6 {[%clk 0:03:03]} 7.
Bb2 {[%clk 0:02:59.3]} 7... Bb7 {[%clk 0:03:03.8]} 8. e3 {[%clk 0:02:58.9]} 8...
Nbd7 {[%clk 0:03:04.4]} 9. Nc3 {[%clk 0:02:58.3]} 9... Ne4 {[%clk 0:03:04.7]}
10. cxd5 {[%clk 0:02:56.9]} 10... exd5 {[%clk 0:03:04.3]} 11. Ne2 {[%clk
0:02:55]} 11... Bf6 {[%clk 0:03:02.6]} 12. Bxf6 {[%clk 0:02:46.6]} 12... Qxf6
{[%clk 0:03:03.5]} 13. d3 {[%clk 0:02:46]} 13... Nd6 {[%clk 0:03:03.6]} 14. Qd2
{[%clk 0:02:40]} 14... c5 {[%clk 0:03:04]} 15. Nf4 {[%clk 0:02:38.6]} 15... Rfd8
{[%clk 0:02:58.4]} 16. h4 {[%clk 0:02:37.8]} 16... h6 {[%clk 0:02:58]} 17. Rac1
{[%clk 0:02:33.5]} 17... g5 {[%clk 0:02:47.7]} 18. hxg5 {[%clk 0:02:15.1]} 18...
hxg5 {[%clk 0:02:48.4]} 19. Nh5 {[%clk 0:02:13.5]} 19... Qh6 {[%clk 0:02:38.6]}
20. g4 {[%clk 0:02:12.6]} 20... Nf6 {[%clk 0:02:39.2]} 21. Nxf6+ {[%clk
0:02:09.5]} 21... Qxf6 {[%clk 0:02:40.1]} 22. Nh2 {[%clk 0:01:49.8]} 22... Re8
{[%clk 0:02:07.1]} 23. f4 {[%clk 0:01:45.8]} 23... gxf4 {[%clk 0:02:06.3]} 24.
Rxf4 {[%clk 0:01:44.8]} 24... Qe5 {[%clk 0:02:02.7]} 25. Re1 {[%clk 0:01:39.9]}
25... d4 {[%clk 0:02:02.8]} 26. e4 {[%clk 0:01:37.5]} 26... b5 {[%clk
0:01:55.2]} 27. Nf3 {[%clk 0:01:34.7]} 27... Qg7 {[%clk 0:01:54.8]} 28. e5
{[%clk 0:01:25.9]} 28... Nc8 {[%clk 0:01:50.8]} 29. Rf5 {[%clk 0:01:24.2]} 29...
Ne7 {[%clk 0:01:49.1]} 30. Rg5 {[%clk 0:01:10.9]} 30... Ng6 {[%clk 0:01:49.5]}
31. e6 {[%clk 0:01:10.7]} 31... f6 {[%clk 0:01:08.3]} 32. Rxc5 {[%clk 0:01:09]}
32... Rad8 {[%clk 0:01:05.8]} 33. g5 {[%clk 0:01:00]} 33... Bxf3 {[%clk
0:01:05.6]} 34. gxf6 {[%clk 0:00:35.7]} 34... Qxf6 {[%clk 0:01:05.2]} 35. Qg5
{[%clk 0:00:34.4]} 35... Kg7 {[%clk 0:00:46.1]} 36. Qxf6+ {[%clk 0:00:27.7]}
36... Kxf6 {[%clk 0:00:47]} 37. Bxf3 {[%clk 0:00:28.1]} 37... Ne5 {[%clk
0:00:46.6]} 38. Rcxe5 {[%clk 0:00:27.3]} 1-0

[Event "Early-Titled-Tuesday-Blitz-May-07-2024"]
[Site "Chess.com"]
[Date "2024.05.07"]
[Round "8"]
[White "WiseKing_08"]
[Black "emeli_chess"]
[Result "1-0"]
[WhiteElo "2595"]
[BlackElo "2422"]
[TimeControl "180+1"]
[EndTime "9:33:53 PDT"]
[Termination "WiseKing_08 won by resignation"]

1. e4 {[%clk 0:03:00.9]} 1... e5 {[%clk 0:02:59.5]} 2. Nf3 {[%clk 0:02:59.6]}
2... Nc6 {[%clk 0:02:59.8]} 3. Bb5 {[%clk 0:03:00.1]} 3... a6 {[%clk 0:02:59.4]}
4. Bxc6 {[%clk 0:02:59.3]} 4... dxc6 {[%clk 0:02:59.1]} 5. O-O {[%clk
0:03:00.2]} 5... f6 {[%clk 0:02:59]} 6. d4 {[%clk 0:02:59.1]} 6... exd4 {[%clk
0:02:59.2]} 7. Nxd4 {[%clk 0:03:00]} 7... c5 {[%clk 0:02:59.2]} 8. Ne2 {[%clk
0:03:00.6]} 8... Qxd1 {[%clk 0:02:58.6]} 9. Rxd1 {[%clk 0:03:01.5]} 9... Bd7
{[%clk 0:02:58.3]} 10. Nbc3 {[%clk 0:02:59.3]} 10... O-O-O {[%clk 0:02:56.3]}
11. Be3 {[%clk 0:02:57.3]} 11... b6 {[%clk 0:02:49.6]} 12. Rd2 {[%clk
0:02:55.2]} 12... Ne7 {[%clk 0:02:43.6]} 13. Rad1 {[%clk 0:02:52.6]} 13... Nc6
{[%clk 0:02:43.6]} 14. Nd5 {[%clk 0:02:43.7]} 14... Be6 {[%clk 0:02:36.1]} 15.
Nef4 {[%clk 0:02:34.5]} 15... Bxd5 {[%clk 0:02:34.6]} 16. Nxd5 {[%clk
0:02:30.4]} 16... Re8 {[%clk 0:02:23.6]} 17. f3 {[%clk 0:02:26.6]} 17... Be7
{[%clk 0:02:21.9]} 18. Bf4 {[%clk 0:02:22.3]} 18... Bd8 {[%clk 0:02:22]} 19. c3
{[%clk 0:02:11.9]} 19... h5 {[%clk 0:02:20.2]} 20. h4 {[%clk 0:02:05.7]} 20...
g5 {[%clk 0:02:05.8]} 21. Bg3 {[%clk 0:02:05.3]} 21... g4 {[%clk 0:02:05.7]} 22.
Kf2 {[%clk 0:02:03.4]} 22... Rhf8 {[%clk 0:01:53.4]} 23. Ne3 {[%clk 0:01:50.2]}
23... gxf3 {[%clk 0:01:39.1]} 24. gxf3 {[%clk 0:01:48.5]} 24... Ne5 {[%clk
0:01:37.9]} 25. b3 {[%clk 0:01:45]} 25... Rg8 {[%clk 0:01:23.1]} 26. Nf5 {[%clk
0:01:36.7]} 26... b5 {[%clk 0:01:19.7]} 27. Rd5 {[%clk 0:01:33.8]} 27... c4
{[%clk 0:01:18.4]} 28. Bxe5 {[%clk 0:01:30.3]} 28... Rxe5 {[%clk 0:01:15.8]} 29.
Rxe5 {[%clk 0:01:19]} 29... fxe5 {[%clk 0:01:14.5]} 30. bxc4 {[%clk 0:01:18.6]}
30... bxc4 {[%clk 0:01:14.8]} 31. Rd5 {[%clk 0:01:18.2]} 31... Re8 {[%clk
0:01:05.4]} 32. Rc5 {[%clk 0:01:16.1]} 32... Re6 {[%clk 0:01:02.3]} 33. Rxc4
{[%clk 0:01:16.1]} 33... Rb6 {[%clk 0:01:02.4]} 34. Rb4 {[%clk 0:01:13.5]} 34...
Rc6 {[%clk 0:00:42.6]} 35. Rb3 {[%clk 0:01:12.7]} 35... Rc4 {[%clk 0:00:41.9]}
36. Ke2 {[%clk 0:01:10.8]} 36... Ra4 {[%clk 0:00:41.7]} 37. Rb2 {[%clk
0:00:56.3]} 37... Ra3 {[%clk 0:00:32.9]} 38. Kd3 {[%clk 0:00:54.6]} 38... Kd7
{[%clk 0:00:32.5]} 39. Kc4 {[%clk 0:00:52.2]} 39... Ke6 {[%clk 0:00:26.6]} 40.
Kb4 {[%clk 0:00:50.1]} 1-0

[Event "Early-Titled-Tuesday-Blitz-May-07-2024"]
[Site "Chess.com"]
[Date "2024.05.07"]
[Round "8"]
[White "WindWhistler11"]
[Black "KnightDuta"]
[Result "0-1"]
[WhiteElo "2554"]
[BlackElo "2730"]
[TimeControl "180+1"]
[EndTime "9:33:54 PDT"]
[Termination "KnightDuta won on time"]

1. Nf3 {[%clk 0:03:00.9]} 1... d5 {[%clk 0:03:00.4]} 2. g3 {[%clk 0:02:59.3]}
2... Nc6 {[%clk 0:03:01.1]} 3. c4 {[%clk 0:02:58.9]} 3... d4 {[%clk 0:03:01.2]}
4. Bg2 {[%clk 0:02:51.7]} 4... e5 {[%clk 0:03:01.8]} 5. O-O {[%clk 0:02:47.9]}
5... e4 {[%clk 0:02:57.3]} 6. Ne1 {[%clk 0:02:47.4]} 6... Nf6 {[%clk 0:02:57.9]}
7. d3 {[%clk 0:02:47.1]} 7... exd3 {[%clk 0:02:58.8]} 8. Nxd3 {[%clk 0:02:47.3]}
8... Be7 {[%clk 0:02:58.5]} 9. Nd2 {[%clk 0:02:45.1]} 9... O-O {[%clk 0:02:58]}
10. Nf3 {[%clk 0:02:45.3]} 10... a5 {[%clk 0:02:56.8]} 11. Bf4 {[%clk 0:02:45]}
11... Ne4 {[%clk 0:02:40.6]} 12. Nfe5 {[%clk 0:02:28.9]} 12... Nxe5 {[%clk
0:02:39.5]} 13. Bxe5 {[%clk 0:02:29]} 13... Nc5 {[%clk 0:02:31]} 14. Nf4 {[%clk
0:02:25.5]} 14... Bf6 {[%clk 0:02:25.4]} 15. Bxf6 {[%clk 0:02:19]} 15... Qxf6
{[%clk 0:02:26.3]} 16. Nd5 {[%clk 0:02:19.4]} 16... Qe5 {[%clk 0:02:08.9]} 17.
f4 {[%clk 0:02:16.4]} 17... Qd6 {[%clk 0:02:08.9]} 18. e4 {[%clk 0:01:40.1]}
18... dxe3 {[%clk 0:02:03]} 19. Nxe3 {[%clk 0:01:39.5]} 19... Qb6 {[%clk
0:01:53.4]} 20. Nd5 {[%clk 0:01:32]} 20... Qxb2 {[%clk 0:01:53.4]} 21. Rf2
{[%clk 0:01:26.4]} 21... Qa3 {[%clk 0:01:47.5]} 22. Nxc7 {[%clk 0:01:23.1]}
22... Rb8 {[%clk 0:01:46.8]} 23. Rf3 {[%clk 0:01:01.8]} 23... Qb2 {[%clk
0:01:18.5]} 24. Rf2 {[%clk 0:00:48.5]} 24... Qa3 {[%clk 0:01:15.9]} 25. Nb5
{[%clk 0:00:37.2]} 25... Qd3 {[%clk 0:01:08.5]} 26. Rd2 {[%clk 0:00:28.6]} 26...
Qe3+ {[%clk 0:01:07.4]} 27. Kh1 {[%clk 0:00:28.3]} 27... Bg4 {[%clk 0:01:07.7]}
28. Qc2 {[%clk 0:00:21.8]} 28... Rbd8 {[%clk 0:01:02.8]} 29. Rf2 {[%clk
0:00:15.4]} 29... Nd3 {[%clk 0:00:52.5]} 30. Rd2 {[%clk 0:00:10]} 30... Nb4
{[%clk 0:00:44.1]} 0-1

[Event "Early-Titled-Tuesday-Blitz-May-07-2024"]
[Site "Chess.com"]
[Date "2024.05.07"]
[Round "8"]
[White "Mikhail_Golubev"]
[Black "PenguinPacks"]
[Result "0-1"]
[WhiteElo "2614"]
[BlackElo "2496"]
[TimeControl "180+1"]
[EndTime "9:34:03 PDT"]
[Termination "PenguinPacks won on time"]

1. e4 {[%clk 0:03:00.9]} 1... c5 {[%clk 0:02:56.2]} 2. Nf3 {[%clk 0:02:59.9]}
2... d6 {[%clk 0:02:56.4]} 3. d4 {[%clk 0:02:59.9]} 3... cxd4 {[%clk 0:02:57.3]}
4. Nxd4 {[%clk 0:03:00]} 4... Nf6 {[%clk 0:02:57.9]} 5. Nc3 {[%clk 0:03:00.1]}
5... a6 {[%clk 0:02:58.5]} 6. Bc4 {[%clk 0:03:00]} 6... e6 {[%clk 0:02:57.7]} 7.
O-O {[%clk 0:03:00]} 7... Be7 {[%clk 0:02:56.1]} 8. Bb3 {[%clk 0:03:00]} 8...
O-O {[%clk 0:02:54.7]} 9. Re1 {[%clk 0:03:00.2]} 9... Nc6 {[%clk 0:02:53.7]} 10.
Re3 {[%clk 0:03:00.2]} 10... Qb6 {[%clk 0:02:51.3]} 11. Nxc6 {[%clk 0:02:54.7]}
11... bxc6 {[%clk 0:02:52.2]} 12. Rg3 {[%clk 0:02:50.7]} 12... Nd7 {[%clk
0:02:51.3]} 13. Bh6 {[%clk 0:02:47]} 13... Bf6 {[%clk 0:02:45]} 14. Qxd6 {[%clk
0:02:38.4]} 14... Be5 {[%clk 0:02:36.4]} 15. Qd3 {[%clk 0:00:32.6]} 15... Bxg3
{[%clk 0:02:34.5]} 16. Qxg3 {[%clk 0:00:31.7]} 16... Qd4 {[%clk 0:02:33.6]} 17.
Rd1 {[%clk 0:00:27.5]} 17... Qf6 {[%clk 0:02:30]} 18. Bg5 {[%clk 0:00:22.6]}
18... Qg6 {[%clk 0:02:26.4]} 19. Qe3 {[%clk 0:00:20.5]} 19... Ne5 {[%clk
0:02:22.4]} 20. Bf4 {[%clk 0:00:16.3]} 20... Ng4 {[%clk 0:02:20.8]} 21. Qc5
{[%clk 0:00:15.6]} 21... a5 {[%clk 0:02:13.7]} 22. h3 {[%clk 0:00:09]} 22... Nf6
{[%clk 0:02:12.9]} 23. Qxc6 {[%clk 0:00:07.5]} 23... Ba6 {[%clk 0:02:11.4]} 24.
a4 {[%clk 0:00:06.9]} 24... Rfc8 {[%clk 0:02:11.1]} 25. Qb6 {[%clk 0:00:05.4]}
25... Nxe4 {[%clk 0:02:07.4]} 26. Nxe4 {[%clk 0:00:05.1]} 26... Qxe4 {[%clk
0:02:08.3]} 27. Be3 {[%clk 0:00:04.3]} 27... Rcb8 {[%clk 0:02:02.9]} 28. Qc5
{[%clk 0:00:03.7]} 28... Rc8 {[%clk 0:01:58]} 29. Qb6 {[%clk 0:00:04]} 29... Qg6
{[%clk 0:01:51.2]} 30. f3 {[%clk 0:00:02.8]} 30... Rcb8 {[%clk 0:01:50.1]} 31.
Qd4 {[%clk 0:00:03]} 31... Bb7 {[%clk 0:01:49.5]} 32. Kh2 {[%clk 0:00:02.2]}
32... Bc6 {[%clk 0:01:47.5]} 33. Rd2 {[%clk 0:00:02]} 33... h5 {[%clk
0:01:46.5]} 34. Qe5 {[%clk 0:00:01.5]} 34... h4 {[%clk 0:01:41.8]} 35. Rd6
{[%clk 0:00:01.4]} 35... Bb7 {[%clk 0:01:30.8]} 36. Bd4 {[%clk 0:00:01.6]} 36...
Re8 {[%clk 0:01:25.9]} 37. Rd7 {[%clk 0:00:01.7]} 37... Bc6 {[%clk 0:01:24.2]}
38. Rc7 {[%clk 0:00:02]} 38... Rac8 {[%clk 0:01:23.7]} 39. Rxc8 {[%clk
0:00:02.3]} 39... Rxc8 {[%clk 0:01:24.6]} 40. Qxa5 {[%clk 0:00:01.7]} 40... Qg3+
{[%clk 0:01:18.5]} 41. Kh1 {[%clk 0:00:00.3]} 41... Bb7 {[%clk 0:01:01.9]} 42.
Qd2 {[%clk 0:00:00.3]} 42... Rd8 {[%clk 0:00:59.6]} 43. c3 {[%clk 0:00:00.6]}
43... e5 {[%clk 0:00:56.5]} 0-1

[Event "Early-Titled-Tuesday-Blitz-May-07-2024"]
[Site "Chess.com"]
[Date "2024.05.07"]
[Round "8"]
[White "DACF2905"]
[Black "TitarovVasiliYouTube"]
[Result "0-1"]
[WhiteElo "2429"]
[BlackElo "2615"]
[TimeControl "180+1"]
[EndTime "9:34:05 PDT"]
[Termination "TitarovVasiliYouTube won by resignation"]

1. e4 {[%clk 0:03:00.9]} 1... Nf6 {[%clk 0:02:59]} 2. Nc3 {[%clk 0:02:59.8]}
2... d6 {[%clk 0:02:58.2]} 3. Nf3 {[%clk 0:02:59.3]} 3... e5 {[%clk 0:02:58.5]}
4. d4 {[%clk 0:02:59.2]} 4... Nbd7 {[%clk 0:02:59.1]} 5. dxe5 {[%clk 0:02:57]}
5... dxe5 {[%clk 0:03:00]} 6. Bc4 {[%clk 0:02:55.6]} 6... Be7 {[%clk 0:02:59.8]}
7. Bg5 {[%clk 0:02:53.1]} 7... O-O {[%clk 0:02:59]} 8. Qd2 {[%clk 0:02:53.1]}
8... c6 {[%clk 0:02:58.2]} 9. Bb3 {[%clk 0:02:48.2]} 9... Qc7 {[%clk 0:02:55.7]}
10. a3 {[%clk 0:02:47.3]} 10... a5 {[%clk 0:02:54.8]} 11. O-O {[%clk 0:02:46.9]}
11... Nc5 {[%clk 0:02:52.6]} 12. Rfe1 {[%clk 0:02:42.4]} 12... Nxb3 {[%clk
0:02:50.6]} 13. cxb3 {[%clk 0:02:42.1]} 13... Be6 {[%clk 0:02:51.5]} 14. Qc2
{[%clk 0:02:37.7]} 14... Rad8 {[%clk 0:02:29.8]} 15. h3 {[%clk 0:02:35.6]} 15...
h6 {[%clk 0:02:22.9]} 16. Be3 {[%clk 0:02:35.5]} 16... Rb8 {[%clk 0:02:08.7]}
17. Na4 {[%clk 0:02:34.5]} 17... b6 {[%clk 0:02:01.4]} 18. Rac1 {[%clk
0:02:30.4]} 18... c5 {[%clk 0:02:00]} 19. Nc3 {[%clk 0:02:28.5]} 19... Bd7
{[%clk 0:01:52.7]} 20. Rcd1 {[%clk 0:02:25.1]} 20... Bc6 {[%clk 0:01:52.1]} 21.
Nd5 {[%clk 0:02:25]} 21... Bxd5 {[%clk 0:01:52.1]} 22. exd5 {[%clk 0:02:24.5]}
22... Bd6 {[%clk 0:01:52.1]} 23. Qf5 {[%clk 0:02:18.9]} 23... Nd7 {[%clk
0:01:44.9]} 24. Bc1 {[%clk 0:02:05.7]} 24... g6 {[%clk 0:01:15.9]} 25. Qc2
{[%clk 0:02:00.6]} 25... Kg7 {[%clk 0:01:12.5]} 26. Nd2 {[%clk 0:01:39.1]} 26...
f5 {[%clk 0:01:11.4]} 27. Nc4 {[%clk 0:01:38.5]} 27... Rbe8 {[%clk 0:01:07.8]}
28. a4 {[%clk 0:01:33.2]} 28... Kh7 {[%clk 0:01:04.4]} 29. Qd2 {[%clk
0:01:29.9]} 29... g5 {[%clk 0:01:02]} 30. h4 {[%clk 0:01:29.4]} 30... f4 {[%clk
0:00:50.6]} 31. hxg5 {[%clk 0:01:29.3]} 31... hxg5 {[%clk 0:00:51.2]} 32. Qd3+
{[%clk 0:01:26.5]} 32... Kg7 {[%clk 0:00:49.4]} 33. Nd2 {[%clk 0:01:26.2]} 33...
Nf6 {[%clk 0:00:40.4]} 34. Ne4 {[%clk 0:01:26.2]} 34... Nxe4 {[%clk 0:00:39.1]}
35. Rxe4 {[%clk 0:01:26.4]} 35... Rh8 {[%clk 0:00:33.8]} 36. g3 {[%clk
0:01:26.6]} 36... Qf7 {[%clk 0:00:32.1]} 37. gxf4 {[%clk 0:01:19.1]} 37... gxf4
{[%clk 0:00:33]} 38. Kf1 {[%clk 0:01:12.6]} 38... Rh1+ {[%clk 0:00:19.6]} 39.
Kg2 {[%clk 0:01:04.8]} 39... Qg6+ {[%clk 0:00:14.1]} 40. Kf3 {[%clk 0:00:52.3]}
40... Rh3+ {[%clk 0:00:14.1]} 0-1

[Event "Early-Titled-Tuesday-Blitz-May-07-2024"]
[Site "Chess.com"]
[Date "2024.05.07"]
[Round "8"]
[White "Kunalm64"]
[Black "Tonychess32"]
[Result "0-1"]
[WhiteElo "2611"]
[BlackElo "2506"]
[TimeControl "180+1"]
[EndTime "9:34:07 PDT"]
[Termination "Tonychess32 won by resignation"]

1. e4 {[%clk 0:02:58.9]} 1... e6 {[%clk 0:03:00.4]} 2. d4 {[%clk 0:02:58.6]}
2... d5 {[%clk 0:03:00.7]} 3. Nd2 {[%clk 0:02:59.5]} 3... dxe4 {[%clk
0:02:59.1]} 4. Nxe4 {[%clk 0:02:59.3]} 4... Nd7 {[%clk 0:02:59.8]} 5. Nf3 {[%clk
0:02:59.2]} 5... Ngf6 {[%clk 0:03:00.4]} 6. Bd3 {[%clk 0:02:59.5]} 6... Nxe4
{[%clk 0:02:59.8]} 7. Bxe4 {[%clk 0:02:59.9]} 7... Nf6 {[%clk 0:03:00.4]} 8. Bg5
{[%clk 0:03:00.5]} 8... Be7 {[%clk 0:02:57.8]} 9. Bxf6 {[%clk 0:03:00.2]} 9...
Bxf6 {[%clk 0:02:58.3]} 10. Qe2 {[%clk 0:03:00.5]} 10... O-O {[%clk 0:02:53.1]}
11. O-O-O {[%clk 0:03:00.7]} 11... Rb8 {[%clk 0:02:23.6]} 12. h4 {[%clk
0:02:58.2]} 12... c5 {[%clk 0:02:10]} 13. Bxh7+ {[%clk 0:02:24.8]} 13... Kxh7
{[%clk 0:02:09.2]} 14. Ng5+ {[%clk 0:02:24.9]} 14... Bxg5+ {[%clk 0:02:09.3]}
15. hxg5+ {[%clk 0:02:24]} 15... Kg6 {[%clk 0:02:02.1]} 16. Qh5+ {[%clk
0:01:56.9]} 16... Kf5 {[%clk 0:02:02.3]} 17. g6+ {[%clk 0:01:16.2]} 17... Kf6
{[%clk 0:02:01.4]} 18. Qe5+ {[%clk 0:01:15.1]} 18... Kxg6 {[%clk 0:01:50.2]} 19.
Qxb8 {[%clk 0:01:14.6]} 19... cxd4 {[%clk 0:01:41.4]} 20. Rd3 {[%clk 0:01:09.6]}
20... f6 {[%clk 0:01:41.1]} 21. f4 {[%clk 0:00:45.1]} 21... Kf7 {[%clk
0:01:28.8]} 22. Qxa7 {[%clk 0:00:43.2]} 22... Qd5 {[%clk 0:01:20]} 23. Qxd4
{[%clk 0:00:31.4]} 23... Qxa2 {[%clk 0:01:18.6]} 24. Kd2 {[%clk 0:00:28]} 24...
Qa5+ {[%clk 0:01:16.1]} 25. b4 {[%clk 0:00:27.8]} 25... Qc7 {[%clk 0:01:11.3]}
26. g3 {[%clk 0:00:24.5]} 26... e5 {[%clk 0:01:08.8]} 27. fxe5 {[%clk
0:00:23.3]} 27... Bf5 {[%clk 0:01:07.6]} 28. Qd6 {[%clk 0:00:17.7]} 28... Qc4
{[%clk 0:01:07.2]} 29. Qd4 {[%clk 0:00:10.6]} 29... Bxd3 {[%clk 0:01:03.3]} 30.
Qxd3 {[%clk 0:00:10.6]} 30... Qxb4+ {[%clk 0:01:02.8]} 31. c3 {[%clk 0:00:09]}
31... Qe7 {[%clk 0:00:55.9]} 32. Qd5+ {[%clk 0:00:08.9]} 32... Kg6 {[%clk
0:00:52]} 33. e6 {[%clk 0:00:06.6]} 33... Rd8 {[%clk 0:00:51.3]} 34. c4 {[%clk
0:00:04.7]} 34... Rxd5+ {[%clk 0:00:51]} 35. cxd5 {[%clk 0:00:05.4]} 35... Qd6
{[%clk 0:00:50.9]} 36. Re1 {[%clk 0:00:05.6]} 36... Qxd5+ {[%clk 0:00:51.2]} 37.
Kc2 {[%clk 0:00:05.9]} 37... Qc5+ {[%clk 0:00:51.2]} 38. Kd1 {[%clk 0:00:05.5]}
38... Qe7 {[%clk 0:00:51.3]} 39. Re3 {[%clk 0:00:05.3]} 39... f5 {[%clk
0:00:51.7]} 40. Ke2 {[%clk 0:00:05.4]} 40... Kf6 {[%clk 0:00:52.3]} 41. Kf3
{[%clk 0:00:06]} 41... Qxe6 {[%clk 0:00:52.8]} 42. Rxe6+ {[%clk 0:00:05.7]}
42... Kxe6 {[%clk 0:00:53.3]} 0-1

[Event "Early-Titled-Tuesday-Blitz-May-07-2024"]
[Site "Chess.com"]
[Date "2024.05.07"]
[Round "8"]
[White "Chesmc"]
[Black "jaramsdal"]
[Result "1-0"]
[WhiteElo "2157"]
[BlackElo "2401"]
[TimeControl "180+1"]
[EndTime "9:34:12 PDT"]
[Termination "Chesmc won by checkmate"]

1. d4 {[%clk 0:03:00.9]} 1... Nf6 {[%clk 0:02:53.4]} 2. Nf3 {[%clk 0:03:00]}
2... c5 {[%clk 0:02:53.9]} 3. Bf4 {[%clk 0:02:54]} 3... cxd4 {[%clk 0:02:52.3]}
4. c3 {[%clk 0:02:52.3]} 4... dxc3 {[%clk 0:02:46.3]} 5. Nxc3 {[%clk 0:02:52.1]}
5... d6 {[%clk 0:02:46.9]} 6. e4 {[%clk 0:02:51.7]} 6... Nc6 {[%clk 0:02:41.2]}
7. Bc4 {[%clk 0:02:50.9]} 7... e6 {[%clk 0:02:23.8]} 8. Qe2 {[%clk 0:02:48.7]}
8... Ke7 {[%clk 0:02:12.1]} 9. O-O {[%clk 0:02:40.7]} 9... Nh5 {[%clk
0:01:58.1]} 10. Be3 {[%clk 0:02:27]} 10... g6 {[%clk 0:01:54.3]} 11. Rfd1 {[%clk
0:02:18.6]} 11... Bg7 {[%clk 0:01:53.7]} 12. Nb5 {[%clk 0:02:10.4]} 12... Qa5
{[%clk 0:01:32.5]} 13. Nxd6 {[%clk 0:01:52]} 13... Rd8 {[%clk 0:01:30]} 14.
Nxc8+ {[%clk 0:01:24.5]} 14... Raxc8 {[%clk 0:01:30.9]} 15. a3 {[%clk
0:01:18.1]} 15... Kf8 {[%clk 0:01:16.3]} 16. Rac1 {[%clk 0:01:10.6]} 16... Kg8
{[%clk 0:01:13.8]} 17. Bg5 {[%clk 0:01:01.8]} 17... Rxd1+ {[%clk 0:01:01.4]} 18.
Rxd1 {[%clk 0:00:59.8]} 18... Nd4 {[%clk 0:01:01]} 19. Nxd4 {[%clk 0:00:44.5]}
19... Qxg5 {[%clk 0:01:01.4]} 20. Nxe6 {[%clk 0:00:35.8]} 20... Qe5 {[%clk
0:00:40.4]} 21. Nxg7 {[%clk 0:00:34]} 21... Kxg7 {[%clk 0:00:41.3]} 22. Ba2
{[%clk 0:00:27.9]} 22... Nf4 {[%clk 0:00:40.7]} 23. Qf3 {[%clk 0:00:26.3]} 23...
Rc2 {[%clk 0:00:38.7]} 24. Qb3 {[%clk 0:00:21.4]} 24... Qxb2 {[%clk 0:00:14.5]}
25. Qxf7+ {[%clk 0:00:19.2]} 25... Kh6 {[%clk 0:00:15.1]} 26. Qxf4+ {[%clk
0:00:19.4]} 26... Kg7 {[%clk 0:00:13.7]} 27. Bb1 {[%clk 0:00:18.3]} 27... Re2
{[%clk 0:00:06.3]} 28. Rd7+ {[%clk 0:00:17.9]} 28... Kh8 {[%clk 0:00:02.6]} 29.
Qf8# {[%clk 0:00:17.2]} 1-0